bitfinex/quotes_ETHUSD_20250720
["timestamp","ask_amount","ask_price","bid_price","bid_amount"]
[1753030944838,1.2459,3782.7,3781.3,2.64856805]
[1753030945038,1.2459,3782.7,3782.0,2.64409071]
[1753030945039,0.032839,3782.6,3782.0,2.64409071]
[1753030945240,1.2459,3782.7,3781.9,2.64411172]
[1753030945466,0.032839,3782.6,3781.3,0.004]
[1753030945637,2.64380661,3782.5,3781.3,0.004]
[1753030945841,0.39225456,3782.5,3781.3,0.004]
[1753030946043,6.2369,3782.7,3782.1,2.64403263]
[1753030946239,6.2369,3782.7,3782.6,2.64368423]
[1753030946240,0.7887,3782.7,3782.6,2.64368423]
[1753030946454,0.7887,3782.7,3781.7,2.6443134]
[1753030946455,0.7887,3782.7,3782.5,2.64373411]
[1753030946651,2.64379802,3782.5,3781.7,2.64427287]
[1753030946864,0.032839,3782.4,3781.7,2.64427287]
[1753030947068,0.490039,3782.6,3781.3,0.004]
[1753030947269,1.0838739,3782.6,3782.1,2.64400564]
[1753030947450,0.4572,3782.5,3781.3,0.004]
[1753030947645,0.032839,3782.4,3781.3,0.004]
[1753030947853,0.7887,3781.9,3781.3,0.004]
[1753030948048,0.7887,3781.9,3781.4,2.64452154]
[1753030948251,0.7887,3781.9,3781.5,2.64445145]
[1753030948459,0.7887,3781.9,3781.3,0.004]
[1753030948765,0.032839,3781.8,3781.3,2.64858122]
[1753030948964,0.7887,3781.9,3781.4,2.64452288]
[1753030949270,0.7887,3781.9,3781.7,2.6443134]
[1753030949271,0.032839,3781.8,3781.7,2.6443134]
[1753030949472,0.78,3783.2,3781.9,3.0]
[1753030949647,0.78,3783.2,3782.0,2.64410364]
[1753030949846,0.78,3783.2,3781.7,0.22174313]
[1753030949847,0.78,3783.2,3781.8,3.02644243]
[1753030950060,0.78,3783.2,3781.8,2.67066829]
[1753030950263,0.78,3783.2,3782.2,2.64390047]
[1753030950566,0.78,3783.2,3781.9,0.43237699]
[1753030950887,0.78,3783.2,3782.4,2.64382381]
[1753030950888,3.13098127,3783.1,3782.4,2.64382381]
[1753030951072,0.4548,3783.1,3781.5,3.02644453]
[1753030951388,0.4548,3783.1,3782.5,2.64374347]
[1753030951685,0.78,3783.2,3783.1,2.64333483]
[1753030951883,0.78,3783.2,3782.1,0.02644033]
[1753030952064,0.78,3783.2,3782.0,3.0]
[1753030952260,0.032839,3783.1,3782.4,2.64376032]
[1753030952461,0.032839,3783.1,3782.0,2.64407354]
[1753030952671,0.032839,3783.1,3782.1,2.64399927]
[1753030952872,0.032839,3783.1,3781.6,0.4296]
[1753030953078,0.032839,3783.1,3782.0,3.0]
[1753030953391,0.032839,3783.1,3782.6,2.6436338]
[1753030953686,0.032839,3783.1,3782.7,2.64360519]
[1753030953897,0.032839,3783.1,3782.1,0.3]
[1753030954071,0.78,3783.2,3782.1,0.3]
[1753030954255,0.78,3783.2,3782.8,2.64351102]
[1753030954887,0.78,3783.2,3781.8,0.4296]
[1753030954888,0.132,3782.8,3781.8,0.4296]
[1753030955058,0.78,3783.2,3781.9,0.132]
[1753030955059,0.132,3782.6,3781.9,0.132]
[1753030955261,2.6434047,3783.0,3782.0,2.64409433]
[1753030955597,0.78,3782.8,3781.5,0.02644453]
[1753030955792,0.78,3782.8,3781.3,0.004]
[1753030955793,0.78,3782.8,3782.3,2.6438327]
[1753030955955,0.78,3782.8,3782.1,2.64398203]
[1753030956306,0.032839,3782.7,3781.3,0.004]
[1753030956491,2.64402952,3782.2,3781.3,2.64853226]
[1753030956786,1.2348,3782.1,3781.3,0.004]
[1753030956992,0.032839,3782.0,3781.3,0.004]
[1753030957191,2.64452319,3781.4,3781.3,0.004]
[1753030957377,1.267639,3781.4,3780.9,0.354]
[1753030957593,0.78,3781.4,3780.9,0.354]
[1753030957798,0.78,3781.4,3780.9,2.99882]
[1753030958107,0.78,3781.4,3780.9,0.354]
[1753030958307,0.78,3781.4,3781.1,2.64473095]
[1753030958475,0.78,3781.4,3781.0,2.6447552]
[1753030958997,0.78,3781.4,3780.9,0.354]
[1753030959392,0.78,3781.4,3781.1,2.64467513]
[1753030959575,0.7521,3781.9,3781.3,2.64459312]
[1753030959774,2.64387209,3782.4,3781.3,2.64452967]
[1753030959969,0.784939,3782.5,3781.1,2.64473301]
[1753030960187,0.7521,3782.3,3780.9,0.354]
[1753030960387,0.7521,3781.3,3780.9,0.354]
[1753030960808,0.7521,3781.3,3780.9,2.99882634]
[1753030961116,0.032839,3781.2,3780.9,0.354]
[1753030961318,0.487639,3781.2,3780.9,0.354]
[1753030961497,0.7521,3781.3,3780.9,2.99884935]
[1753030961804,0.7521,3781.3,3780.9,2.99885181]
[1753030962212,0.032839,3781.2,3780.9,0.354]
[1753030962412,1.2069,3781.1,3780.9,0.354]
[1753030962917,0.7521,3781.1,3780.9,0.354]
[1753030963215,3.88454196,3781.0,3780.9,0.354]
[1753030963431,4.76509616,3781.0,3780.9,0.354]
[1753030963884,4.76509616,3781.0,3780.9,0.304]
[1753030964284,4.73225716,3781.0,3780.9,0.304]
[1753030964480,0.8176,3780.5,3779.7,0.001]
[1753030964705,2.64564262,3779.8,3779.7,0.001]
[1753030964919,0.032839,3779.8,3779.7,0.001]
[1753030965133,5.3708,3780.4,3779.7,0.001]
[1753030965134,0.4548,3780.4,3779.7,0.001]
[1753030965275,2.64537355,3780.2,3779.7,0.001]
[1753030965482,2.64564262,3779.8,3779.7,0.001]
[1753030965892,3.49608162,3779.8,3779.7,0.001]
[1753030966091,3.95088162,3779.8,3779.7,0.001]
[1753030966919,1.305239,3779.8,3779.7,0.001]
[1753030967212,1.2724,3779.8,3779.7,0.001]
[1753030967784,0.8176,3779.8,3779.7,2.64671262]
[1753030968110,2.64544743,3780.1,3779.7,0.001]
[1753030968316,0.032839,3780.2,3779.7,0.001]
[1753030968516,0.8176,3780.3,3779.7,0.001]
[1753030968690,7.2225542,3781.0,3780.2,2.64536267]
[1753030968691,1.2724,3780.9,3780.2,2.64536267]
[1753030968891,1.2724,3780.9,3780.5,2.6451296]
[1753030968892,0.8176,3780.9,3780.5,2.6451296]
[1753030969096,0.132,3780.3,3779.9,2.64557263]
[1753030969308,0.850439,3780.9,3780.1,2.64543266]
[1753030969499,0.132,3780.1,3779.7,0.4306]
[1753030969705,0.7742,3782.4,3780.1,0.7588]
[1753030969884,0.132,3781.6,3781.0,0.132]
[1753030970084,0.132,3781.6,3779.7,2.64571262]
[1753030970315,0.4548,3782.1,3779.9,3.0]
[1753030970514,0.4548,3782.1,3780.0,0.02645502]
[1753030970720,0.7742,3782.4,3780.6,0.7588]
[1753030970919,2.64398046,3782.2,3781.4,2.64451878]
[1753030971118,2.64398046,3782.2,3781.4,2.64452113]
[1753030971343,0.65496576,3782.1,3780.6,3.40385739]
[1753030971624,0.65496576,3782.1,3780.6,3.43033257]
[1753030971833,3.29900871,3782.1,3780.6,0.7588]
[1753030971995,0.032839,3782.2,3781.5,2.6443928]
[1753030972200,3.41804939,3782.4,3780.9,2.64487291]
[1753030972201,2.64389474,3782.3,3780.9,2.64487291]
[1753030972390,2.64389474,3782.3,3781.5,2.64440038]
[1753030972596,2.67673374,3782.3,3781.6,2.64436311]
[1753030972797,0.65494201,3782.3,3780.9,2.6712942]
[1753030972997,0.032839,3782.2,3780.9,2.64484548]
[1753030973313,0.032839,3782.2,3780.9,2.64481439]
[1753030973527,2.67680619,3782.2,3780.9,2.64481439]
[1753030973846,3.87303373,3782.1,3780.1,0.7588]
[1753030974140,0.7742,3781.9,3780.2,2.64530458]
[1753030974299,0.7742,3781.9,3779.7,2.64571262]
[1753030974300,2.64478857,3781.1,3779.7,2.64571262]
[1753030974494,2.64473447,3781.1,3780.3,2.6452428]
[1753030974709,0.7742,3781.9,3780.1,0.02645432]
[1753030974908,3.4512168,3781.9,3780.2,2.64530638]
[1753030975098,3.4512168,3781.9,3780.0,0.3796]
[1753030975099,0.39060168,3781.8,3780.0,0.3796]
[1753030975407,2.64451609,3781.5,3780.7,2.64501035]
[1753030975608,3.09914781,3781.7,3780.9,2.64486286]
[1753030975826,2.64438764,3781.6,3780.6,2.64503968]
[1753030976022,0.4548,3781.7,3780.3,2.6452927]
[1753030976241,2.64438537,3781.6,3780.9,2.64482532]
[1753030976455,0.032839,3781.7,3780.0,3.0]
[1753030976605,2.64405913,3782.1,3780.7,0.7849]
[1753030976944,0.032839,3782.3,3780.8,2.64494286]
[1753030977253,0.032839,3782.3,3781.7,2.6442571]
[1753030977451,0.31314645,3782.2,3781.9,2.64413401]
[1753030977760,2.64377224,3782.5,3781.7,2.64429561]
[1753030978040,0.4335,3782.2,3781.2,2.67109186]
[1753030978253,0.032839,3782.5,3780.8,0.02644942]
[1753030978403,5.724739,3782.6,3781.2,2.64465588]
[1753030978608,3.07726864,3782.5,3781.7,2.64425504]
[1753030978917,0.88020076,3782.4,3781.7,2.64424948]
[1753030979228,0.466339,3782.3,3780.9,2.64487291]
[1753030979399,5.18533899,3782.3,3780.9,2.64487291]
[1753030979602,7.82924082,3782.3,3781.6,2.64437787]
[1753030979824,5.15249999,3782.3,3781.0,0.02644802]
[1753030980153,4.71899999,3782.3,3781.9,2.64415176]
[1753030980310,0.132,3781.7,3780.9,0.02644872]
[1753030980644,0.132,3781.7,3780.9,0.29103657]
[1753030980847,0.132,3780.9,3779.7,0.132]
[1753030981153,0.132,3780.9,3779.6,0.7398871]
[1753030981154,0.8007,3780.7,3779.6,0.001]
[1753030981304,10.03149999,3780.8,3779.6,0.001]
[1753030981516,2.64571262,3779.7,3779.6,0.001]
[1753030981850,2.64705871,3777.8,3777.5,0.132]
[1753030982005,0.4335,3777.7,3776.3,0.5427]
[1753030982203,0.8007,3777.9,3776.3,0.5427]
[1753030982204,0.132,3777.4,3776.6,0.132]
[1753030982410,0.032839,3777.7,3776.9,2.64767401]
[1753030982631,1.2342,3778.7,3776.9,2.64767401]
[1753030982831,0.8007,3779.2,3777.2,0.5427]
[1753030983005,0.8007,3779.7,3779.6,2.64578262]
[1753030983211,0.4335,3780.4,3780.1,2.64540018]
[1753030983408,0.8007,3780.3,3780.0,2.64543515]
[1753030983631,0.8007,3780.3,3778.8,2.64634275]
[1753030983807,0.8007,3781.4,3779.0,0.5427]
[1753030984013,2.6447358,3781.1,3779.7,2.64570342]
[1753030984212,0.8007,3780.9,3779.0,0.5427]
[1753030984449,0.8007,3779.9,3777.5,2.64720066]
[1753030984647,5.3585,3780.8,3776.7,2.64779364]
[1753030984648,0.8007,3779.4,3776.7,2.64779364]
[1753030984810,5.74457,3779.3,3776.8,0.32973936]
[1753030985014,0.8007,3778.4,3776.8,0.3562168]
[1753030985248,2.64696002,3778.0,3776.8,0.02647744]
[1753030985550,4.931,3778.1,3776.5,0.5427]
[1753030985752,7.57784657,3778.1,3776.5,0.5427]
[1753030986044,2.64703755,3777.9,3776.5,0.5427]
[1753030986248,4.931,3778.1,3776.6,2.64788434]
[1753030986249,0.4335,3777.8,3776.6,2.64788434]
[1753030986446,0.4335,3777.8,3776.9,2.64762832]
[1753030986656,2.64724143,3777.6,3776.7,2.64775379]
[1753030986816,0.4931,3778.0,3775.9,0.6496]
[1753030986817,0.4335,3777.5,3775.9,0.5427]
[1753030987017,0.4335,3777.5,3775.4,0.20221568]
[1753030987447,0.8007,3777.3,3774.8,0.5427]
[1753030987668,0.8007,3777.3,3775.7,2.64851465]
[1753030987669,2.64753382,3777.1,3775.7,2.64851465]
[1753030987815,0.4335,3777.0,3774.8,0.5427]
[1753030988018,0.8007,3776.0,3775.1,2.64887516]
[1753030988219,5.3495,3775.9,3775.2,2.64883551]
[1753030988447,5.7187,3776.0,3775.2,2.648798]
[1753030988652,0.4335,3775.9,3774.2,3.08783799]
[1753030988849,0.4335,3775.9,3775.0,2.64899449]
[1753030989051,0.4335,3775.9,3774.2,0.43830185]
[1753030989052,4.917,3775.8,3774.2,3.08786658]
[1753030989260,0.4335,3775.9,3774.6,2.64921968]
[1753030989456,2.64844536,3775.8,3774.2,3.08780737]
[1753030989671,1.31316454,3775.7,3774.2,0.43830185]
[1753030989849,5.3525,3775.7,3775.5,2.64859079]
[1753030990170,0.8007,3776.0,3775.9,2.64837522]
[1753030990321,4.92,3776.5,3776.4,2.64802457]
[1753030990523,0.8234,3776.7,3776.6,2.64788434]
[1753030990952,1.2569,3776.7,3776.6,2.64788434]
[1753030991156,1.2569,3776.7,3776.4,2.64796915]
[1753030991480,0.4335,3776.6,3774.8,2.64914697]
[1753030991620,2.64868617,3775.5,3773.9,2.64977802]
[1753030991826,0.8234,3775.3,3773.7,0.5427]
[1753030992035,0.8234,3775.3,3775.2,2.64886628]
[1753030992337,0.8234,3775.3,3774.3,0.02649497]
[1753030992643,0.132,3774.5,3774.4,3.04942772]
[1753030992845,0.132,3774.5,3774.4,2.99942772]
[1753030993048,0.8234,3775.3,3775.0,2.64898298]
[1753030993356,0.8234,3775.3,3774.8,2.6491414]
[1753030993655,0.132,3774.9,3774.8,2.64914697]
[1753030994155,0.8234,3775.9,3774.8,0.02649146]
[1753030994358,0.132,3775.2,3774.6,0.132]
[1753030994558,2.6484692,3775.8,3774.8,2.64913471]
[1753030994851,0.132,3774.5,3774.4,0.35]
[1753030995288,0.132,3774.5,3774.4,2.99942772]
[1753030995644,0.128,3774.5,3774.4,2.99942772]
[1753030996266,4.917,3775.6,3774.4,0.35]
[1753030996453,4.917,3775.6,3774.6,2.64923815]
[1753030996454,0.4335,3775.3,3774.6,2.64923815]
[1753030996649,0.4335,3775.3,3774.4,2.99941824]
[1753030996650,2.64823523,3776.1,3774.4,0.35]
[1753030996854,4.799403,3777.5,3774.4,2.99942255]
[1753030996855,5.3605,3775.8,3774.4,2.99942255]
[1753030997057,0.132,3774.7,3774.4,0.35]
[1753030997276,2.64919894,3774.8,3774.4,0.35]
[1753030997483,0.4335,3775.0,3774.4,0.35]
[1753030998063,1.23394463,3775.0,3774.4,0.35]
[1753030998282,0.4335,3775.0,3774.4,0.35]
[1753030999000,4.925,3775.3,3774.4,0.35]
[1753030999001,0.8234,3775.9,3774.4,0.35]
[1753030999170,0.132,3774.7,3774.5,0.56919357]
[1753030999478,0.833,3774.6,3774.4,0.35]
[1753030999694,3.08285753,3774.5,3774.4,0.35]
[1753030999854,4.23206682,3774.5,3774.4,0.35]
[1753031000056,8.72656682,3774.5,3774.4,0.35]
[1753031000256,2.64949792,3774.3,3774.2,0.43830185]
[1753031000457,2.65001595,3773.6,3772.9,2.650476]
[1753031000746,2.65001595,3773.6,3771.9,0.1069]
[1753031000747,4.927,3773.6,3771.9,0.1069]
[1753031001048,4.927,3773.6,3772.0,0.02651113]
[1753031001049,4.923,3773.5,3772.0,0.02651113]
[1753031001275,0.53605,3773.6,3772.1,2.65104318]
[1753031001477,4.921,3773.5,3772.9,2.65041326]
[1753031001815,4.921,3773.5,3772.3,2.65090263]
[1753031001945,4.921,3773.5,3772.2,0.4457]
[1753031002390,4.921,3773.5,3773.0,2.65039797]
[1753031002586,4.921,3773.5,3772.4,2.65077774]
[1753031002810,0.833,3773.7,3772.8,2.65054513]
[1753031002996,4.909,3773.6,3773.0,2.65037376]
[1753031003166,4.909,3773.6,3773.1,2.65033106]
[1753031003368,0.833,3773.7,3772.7,2.65062157]
[1753031003580,0.833,3774.3,3772.8,0.47220551]
[1753031003909,4.906,3773.7,3772.2,0.02650972]
[1753031004107,0.24249737,3773.6,3772.8,2.65052197]
[1753031004260,2.65059071,3772.8,3772.2,0.02650972]
[1753031004461,2.6509765,3772.2,3771.5,2.65144428]
[1753031004704,0.48503262,3772.1,3771.4,2.65151464]
[1753031004910,0.48503262,3772.1,3770.8,2.65195714]
[1753031004911,0.48503262,3772.0,3770.6,4.904]
[1753031005110,0.48503262,3771.9,3771.8,2.65125404]
[1753031005600,0.48503262,3771.9,3770.5,2.65216814]
[1753031005902,0.48504075,3771.8,3771.7,2.65132433]
[1753031006199,0.48504075,3771.8,3771.7,2.99702433]
[1753031006388,0.48506603,3771.8,3771.7,2.99702433]
[1753031006585,0.24256866,3771.8,3771.7,2.99702433]
[1753031006787,0.8553275,3773.3,3772.7,2.65058832]
[1753031006788,0.8222,3773.3,3772.7,2.65058832]
[1753031006985,0.8222,3773.3,3771.8,0.01324714]
[1753031007186,0.8222,3773.3,3771.9,0.4457]
[1753031007394,0.8222,3773.3,3772.7,2.65060964]
[1753031007605,0.4335,3773.2,3772.5,0.01324468]
[1753031007905,0.4554,3773.2,3771.1,0.01325276]
[1753031008209,0.8222,3773.0,3771.0,0.4495]
[1753031008389,0.8222,3773.0,3770.9,4.95]
[1753031008390,2.65103435,3772.2,3770.9,4.95]
[1753031008587,0.03313803,3772.1,3771.0,2.65180509]
[1753031008790,0.03313803,3772.1,3771.1,4.965]
[1753031009005,0.03313452,3772.5,3771.3,2.65160554]
[1753031009302,0.03313452,3772.5,3770.4,2.6522208]
[1753031009303,0.8222,3772.4,3770.1,0.4495]
[1753031009467,0.4554,3772.3,3771.1,2.65168114]
[1753031009669,0.03313716,3772.2,3771.2,2.65161449]
[1753031009874,0.132,3770.9,3770.3,5.0]
[1753031010078,0.132,3770.9,3770.8,2.65195714]
[1753031010616,0.7632,3772.1,3772.0,2.65111346]
[1753031011394,0.132,3772.0,3771.2,0.0132626]
[1753031011705,0.132,3771.8,3771.7,2.60132433]
[1753031011908,0.24330311,3772.8,3771.0,2.65181649]
[1753031011909,0.132,3771.7,3771.0,2.65181649]
[1753031012202,0.0331354,3772.4,3770.9,0.001]
[1753031012506,0.79633452,3772.5,3772.4,2.65083236]
[1753031012706,0.7632,3772.5,3771.2,0.01325698]
[1753031012909,0.4554,3773.0,3771.6,2.65138418]
[1753031013081,0.7632,3773.1,3771.7,0.46275733]
[1753031013281,0.7632,3773.1,3771.8,5.008]
[1753031013473,0.7632,3773.1,3771.9,5.007]
[1753031013671,0.7632,3773.1,3771.8,0.01325452]
[1753031013879,0.7632,3773.1,3771.2,0.4495]
[1753031013880,0.27694113,3773.0,3771.2,0.4495]
[1753031014073,0.27694113,3773.0,3771.3,2.65160554]
[1753031014074,0.84875428,3772.9,3771.3,2.65160554]
[1753031014276,0.24380017,3772.8,3771.4,0.01326119]
[1753031014579,0.24380017,3772.7,3772.3,2.65083466]
[1753031014893,0.24380017,3772.6,3771.6,0.4495]
[1753031015092,0.7632,3773.1,3771.4,2.65153523]
[1753031015093,0.24478547,3772.5,3772.0,2.65104449]
[1753031015416,0.24478547,3772.4,3772.1,2.65103054]
[1753031015705,0.24478547,3772.3,3771.3,2.65157848]
[1753031016006,0.24478547,3772.2,3771.2,0.46276541]
[1753031016218,0.4554,3774.2,3772.1,4.08585801]
[1753031016401,0.4554,3774.2,3772.3,2.65090263]
[1753031016707,0.4554,3774.2,3771.5,0.55]
[1753031016708,0.01988721,3774.1,3772.4,5.049]
[1753031016915,0.7885,3774.3,3772.5,0.02650762]
[1753031017072,0.7885,3774.9,3774.4,2.64942772]
[1753031017518,2.6683209,3775.9,3774.4,2.64942772]
[1753031017519,0.4554,3775.7,3774.4,2.64942772]
[1753031017817,1e-08,3774.5,3774.4,8.02442199]
[1753031018128,1e-08,3774.5,3774.4,7.99792772]
[1753031018418,1e-08,3774.5,3774.4,10.99792772]
[1753031018783,1e-08,3774.5,3774.4,6.49892772]
[1753031018984,0.01988721,3777.3,3774.8,0.55]
[1753031019206,0.7885,3777.5,3775.7,3.0]
[1753031019392,0.7885,3777.5,3777.4,2.64732355]
[1753031019592,0.7526,3778.2,3778.1,2.64683306]
[1753031019821,0.7526,3779.1,3777.8,5.043]
[1753031020018,0.7526,3779.1,3777.7,2.64711202]
[1753031020019,0.7526,3779.1,3777.9,0.02646973]
[1753031020219,0.01988721,3779.6,3777.9,0.02646973]
[1753031020516,0.7526,3779.5,3779.0,2.64613944]
[1753031020726,0.4554,3780.1,3779.4,2.64592263]
[1753031020883,3.41805321,3780.0,3778.7,2.64634716]
[1753031021082,1.59534532,3779.9,3777.6,2.513]
[1753031021418,0.01988721,3779.8,3778.5,2.64648868]
[1753031021584,0.01988721,3779.8,3778.5,2.64652548]
[1753031021780,1.208,3779.9,3778.9,2.64626477]
[1753031022002,1.208,3779.9,3779.0,2.64618108]
[1753031022003,0.01988721,3779.8,3779.0,2.64618108]
[1753031022216,0.132,3779.3,3778.9,2.64625483]
[1753031022389,0.7526,3779.9,3778.7,0.132]
[1753031022390,0.01988721,3779.8,3778.7,5.043]
[1753031022593,0.132,3779.1,3778.8,2.64634053]
[1753031022917,3.39817866,3779.9,3777.9,2.64695874]
[1753031022918,2.77841031,3778.8,3777.9,2.64695874]
[1753031023118,0.132,3778.3,3778.2,2.646763]
[1753031023328,0.132,3778.6,3778.0,0.02646903]
[1753031023626,2.64613267,3779.1,3777.7,5.036]
[1753031023925,0.4554,3779.2,3777.8,5.034]
[1753031023926,0.132,3778.2,3777.8,5.034]
[1753031024216,0.132,3778.2,3777.5,0.132]
[1753031024217,0.132,3778.2,3777.5,2.77918642]
[1753031024529,0.132,3778.2,3778.0,2.64685318]
[1753031025015,0.7526,3778.7,3777.6,5.032]
[1753031025216,0.7526,3779.2,3777.8,0.02647043]
[1753031025516,0.7526,3779.2,3778.7,2.64635076]
[1753031025824,0.7526,3779.2,3778.8,2.64630319]
[1753031026120,0.7526,3779.2,3778.7,2.64638985]
[1753031026281,0.7526,3779.2,3778.3,2.64666995]
[1753031026484,0.01988721,3779.1,3778.2,2.64675267]
[1753031026808,0.7526,3779.2,3778.8,2.6463112]
[1753031026984,0.7526,3779.7,3778.3,0.02646692]
[1753031027184,0.7526,3779.7,3779.3,2.64596045]
[1753031027385,0.7526,3779.7,3778.3,0.02646692]
[1753031027716,0.01988721,3780.5,3778.6,3.0]
[1753031027717,0.7526,3780.2,3778.6,3.0]
[1753031028020,0.7526,3780.2,3778.8,2.64634275]
[1753031028315,0.7526,3780.2,3778.9,0.02646272]
[1753031028524,0.7526,3781.2,3779.9,2.64550484]
[1753031028727,0.4554,3781.0,3780.3,2.64527909]
[1753031028884,0.38726713,3780.9,3779.8,5.0]
[1753031029085,0.4554,3781.0,3779.2,0.4495]
[1753031029086,0.4554,3781.0,3779.7,2.67211101]
[1753031029313,0.7526,3781.2,3779.7,2.67211101]
[1753031029314,0.7526,3781.2,3779.8,4.996]
[1753031029518,0.002,3781.3,3779.9,3.12152835]
[1753031030032,0.002,3781.3,3780.0,2.64550264]
[1753031030235,0.002,3781.3,3781.2,2.64466306]
[1753031030384,0.002,3781.3,3780.1,0.02645432]
[1753031030385,0.002,3781.3,3780.7,5.01645012]
[1753031030582,0.002,3781.3,3780.5,2.64510298]
[1753031030809,0.002,3781.3,3780.3,4.99]
[1753031031001,0.002,3781.3,3780.1,2.64542282]
[1753031031199,0.002,3781.3,3781.0,2.64479154]
[1753031031423,0.002,3781.3,3781.0,2.64478204]
[1753031031595,0.002,3781.3,3780.5,0.02645152]
[1753031031797,2.64466306,3781.2,3780.5,4.981]
[1753031031998,0.33009352,3781.1,3780.4,4.979]
[1753031032201,0.33009352,3781.1,3780.4,2.64521179]
[1753031032539,0.02188721,3781.0,3779.4,0.4495]
[1753031032834,0.002,3781.0,3779.5,0.02645852]
[1753031033040,0.002,3781.0,3780.1,2.64539629]
[1753031033204,0.002,3781.0,3780.8,2.64493023]
[1753031033402,0.002,3781.0,3780.7,2.64497037]
[1753031033615,0.002,3781.0,3779.6,3.09525394]
[1753031033812,0.002,3781.0,3780.3,2.64526843]
[1753031034015,0.31241247,3781.0,3780.4,2.64521488]
[1753031034334,0.31241247,3781.0,3780.5,2.6451416]
[1753031034635,0.31241247,3781.0,3780.5,2.64511479]
[1753031035035,0.31241247,3781.0,3780.3,7.61229206]
[1753031035036,0.31241247,3781.0,3780.6,2.64506691]
[1753031035330,0.132,3780.7,3780.6,2.64506691]
[1753031038031,0.132,3780.7,3780.6,7.59206691]
[1753031038230,0.132,3780.7,3780.6,2.64506691]
[1753031038530,0.8191,3780.7,3779.9,7.58054249]
[1753031038742,0.8191,3780.7,3780.6,2.64508279]
[1753031039074,0.002,3781.0,3780.9,2.64487291]
[1753031040424,0.002,3781.0,3779.4,0.4495]
[1753031040639,0.002,3781.0,3778.0,4.78894097]
[1753031040640,0.7914,3780.8,3778.0,4.78894097]
[1753031040944,2.6453415,3780.3,3779.6,2.64573925]
[1753031041144,2.64550264,3780.0,3779.1,2.64612637]
[1753031041464,0.4648,3779.9,3778.7,4.922]
[1753031041774,2.64628627,3778.9,3777.3,2.762]
[1753031042069,0.80856863,3778.8,3776.7,0.4495]
[1753031042287,0.01988721,3778.7,3776.7,3.09731326]
[1753031042428,2.64674431,3778.3,3777.5,2.64724379]
[1753031042626,0.01988721,3778.2,3776.9,2.6476185]
[1753031042963,0.4648,3778.3,3777.0,4.925]
[1753031043265,0.7914,3778.2,3777.1,0.02647533]
[1753031043429,0.7914,3778.2,3776.6,2.64784687]
[1753031043430,2.64732729,3777.4,3776.6,2.64784687]
[1753031043632,0.4648,3777.7,3776.7,2.64781237]
[1753031043865,0.4648,3777.7,3775.7,0.4495]
[1753031043866,0.01988721,3777.6,3775.7,0.4495]
[1753031044085,0.31318104,3777.5,3776.7,2.64781207]
[1753031044368,0.4648,3777.7,3776.4,2.64799744]
[1753031044369,0.4648,3777.7,3776.8,2.64774232]
[1753031044664,0.8331,3777.4,3774.6,2.6492354]
[1753031044865,0.01988721,3777.3,3775.9,2.64834462]
[1753031045035,2.64760273,3777.1,3776.3,2.64807908]
[1753031045239,2.64761413,3777.0,3775.6,0.4495]
[1753031045455,2.64809508,3776.3,3775.6,0.4495]
[1753031045654,2.64798382,3776.5,3775.5,4.917]
[1753031045960,2.66779565,3776.6,3775.8,2.64843433]
[1753031046145,0.01988721,3776.6,3775.8,2.64839041]
[1753031046345,0.01988721,3776.6,3775.1,0.4495]
[1753031046346,2.64795445,3776.5,3775.5,4.916]
[1753031046539,2.64795445,3776.5,3774.4,2.64938302]
[1753031046540,0.66136246,3776.5,3774.8,4.911]
[1753031046767,0.01988721,3776.4,3774.9,4.911]
[1753031046980,0.01988721,3776.4,3775.7,2.64851503]
[1753031047180,3.48105266,3776.6,3776.4,2.64795934]
[1753031047181,0.8331,3776.6,3776.4,2.64795934]
[1753031047482,0.8331,3776.6,3775.8,0.02648445]
[1753031047483,0.8331,3776.6,3776.3,2.64803662]
[1753031047653,0.8331,3776.6,3776.5,2.64795445]
[1753031047990,0.8331,3776.6,3775.7,4.909]
[1753031047991,0.8331,3777.3,3777.2,2.64746372]
[1753031048143,0.8331,3777.8,3776.5,0.4495]
[1753031048339,2.64729882,3777.5,3776.7,2.64778226]
[1753031048669,0.132,3776.7,3776.0,2.64828308]
[1753031048856,0.132,3776.1,3776.0,2.64830508]
[1753031049056,0.8331,3777.8,3776.0,0.4495]
[1753031049249,0.132,3777.2,3777.1,2.64753382]
[1753031049864,0.8331,3777.8,3777.7,2.64711332]
[1753031050069,0.132,3777.8,3777.7,2.64711332]
[1753031050246,0.8074,3778.8,3777.6,5.29436678]
[1753031050461,0.132,3778.6,3778.5,2.64650384]
[1753031050662,0.132,3778.6,3778.2,4.904]
[1753031050957,0.132,3778.6,3778.5,2.64655286]
[1753031051174,1.2722,3778.5,3776.4,0.4495]
[1753031051352,0.8074,3778.3,3774.8,6.349]
[1753031051685,0.8074,3777.0,3775.3,2.64879612]
[1753031051844,0.8074,3777.0,3776.8,2.64769143]
[1753031052049,0.8074,3777.0,3776.2,2.64813034]
[1753031052246,3.4550165,3777.0,3776.2,4.917]
[1753031052484,0.8074,3777.0,3776.5,2.64791662]
[1753031052780,0.8074,3777.0,3776.2,2.64810482]
[1753031052986,1.20135645,3777.0,3775.0,0.4495]
[1753031053156,2.64781783,3776.7,3775.2,2.64886628]
[1753031053342,0.8074,3777.0,3775.7,2.64848451]
[1753031053546,2.64796347,3776.5,3775.8,4.911]
[1753031053747,0.01988721,3776.7,3775.9,2.6483239]
[1753031054099,1.2722,3777.0,3775.6,4.91]
[1753031054294,1.2722,3777.0,3775.9,2.64835597]
[1753031054460,2.64778886,3776.8,3776.0,2.64824284]
[1753031054666,0.8074,3777.0,3776.6,2.64782803]
[1753031054873,0.48468721,3776.9,3775.1,2.64892805]
[1753031055189,2.64774412,3776.8,3775.9,2.64834021]
[1753031055405,0.8074,3777.0,3776.0,0.02648305]
[1753031055608,0.8074,3777.0,3775.7,2.6485155]
[1753031055766,0.8074,3777.0,3776.6,2.64782077]